[Event "Charlotte Spring IM-C 2023"]
[Site "Charlotte"]
[Date "2023.03.17"]
[Round "3.1"]
[White "Sriniaiyer, Sudarshan"]
[Black "Adamson, Robby"]
[Result "0-1"]
[ECO "E21"]
[WhiteElo "2186"]
[BlackElo "2265"]
[Annotator "TA"]
[PlyCount "68"]
[EventDate "2023.03.14"]
[EventType "tourn"]
[EventCountry "USA"]
[SourceTitle "playchess.com"]
[Source "ChessBase"]
[SourceQuality "1"]
[TimeControl "5400+30"]

{[%evp 21,67,5,10,0,0,0,0,-2,25,21,46,17,57,43,72,26,31,0,0,-24,0,-179,-193,-187,-189,-194,-187,-160,-159,-154,-139,-186,-167,-168,-196,-261,-260,-297,-296,-289,-293,-427,-426,-529,-493,-29981,-29982,-29999]} 1. d4 {[%emt 0:00:03]} Nf6 {[%emt 1:31:00]} 2. c4 {[%emt 0:03:23]} e6 {[%emt 0:00:00]} 3. Nc3 {[%emt 0:00:20]} Bb4 {[%emt 0:00:00]} 4. e3 {[%emt 0:00:08]} O-O {[%emt 0:00:00]} 5. Bd2 {[%emt 0:00:08]} c5 {[%emt 0:00:00]} 6. a3 {[%emt 0:10:39]} Bxc3 {[%emt 0:00:00]} 7. Bxc3 {[%emt 0:00:12]} Ne4 {[%emt 0:00:00]} 8. Rc1 {[%emt 0:06:15]} d6 {[%emt 0:00:00]} 9. Nf3 {[%emt 0:04:14]} b6 {[%emt 0:00:00]} 10. Be2 {[%emt 0:09:02]} Bb7 {[%emt 0:00:00]} 11. O-O {[%emt 0:01:50]} Nd7 {[%emt 0:00:00]} 12. Qc2 {[%emt 0:12:36] E21: Nimzo-Indian: 4 Nf3.} Qe7 {[%emt 0:00:00]} 13. Rfd1 {[%emt 0:03:57]} f5 {[%emt 0:00:00] [#]} 14. b4 $146 {[%emt 0:13:22] The position is equal.} ({Predecessor:} 14. b3 Ndf6 15. dxc5 bxc5 16. b4 Nxc3 17. Qxc3 Ne4 18. Qd3 Rad8 19. Ne1 cxb4 20. axb4 e5 21. f3 Qh4 22. h3 Qf2+ 23. Kh2 Qg3+ 24. Kg1 Nf2 25. Qa3 {0-1 Jovanovic,D (2144)-Brkovic,B (2236) Serbia-chT central 2003}) 14... Ndf6 {[%emt 0:00:00]} 15. Be1 {[%emt 0:03:04]} Rad8 {[%emt 0:00:00]} 16. Rb1 {[%emt 0:04:40]} Qc7 {[%emt 0:00:00]} 17. Qb3 {[%emt 0:03:19]} Rb8 {[%emt 0:00:00]} 18. a4 {[%emt 0:03:20]} (18. dxc5 $16 dxc5 19. Qb2) 18... g5 $11 {[%emt 0:00:00]} 19. bxc5 {[%emt 0:03:24]} bxc5 {[%emt 0:00:00][%cal Oe4f2]} 20. dxc5 {[%emt 0:00:54]} dxc5 {[%emt 0:00:00][%cal Oe4f2] Strongly threatening ...Nxf2!} 21. Qb2 $2 {[%emt 0:04:44] [#]} (21. Qa3 $11) 21... Nxf2 $1 $19 {[%emt 0:00:00][%mdl 512]} 22. Bxf2 {[%emt 0:06:41]} Bxf3 {[%emt 0:00:09]} 23. Qa2 {[%emt 0:00:29]} Bxe2 {[%emt 0:00:47]} 24. Qxe2 {[%emt 0:00:02]} Ne4 {[%emt 0:02:04] Against Bg3} 25. Be1 {[%emt 0:00:01]} Kg7 {[%emt 0:01:47] Black is more active.} 26. Rb5 {[%emt 0:00:22]} (26. Rxb8 $17 Rxb8 27. Qh5) 26... a6 {[%emt 0:00:19]} 27. Rxb8 {[%emt 0:01:24]} Rxb8 {[%emt 0:00:04]} 28. Qd3 {[%emt 0:00:05]} (28. Qh5 {was necessary.} Rd8 29. Bg3 Rxd1+ 30. Qxd1 Nxg3 31. hxg3) 28... Kg6 {[%emt 0:01:39]} 29. Qc2 {[%emt 0:04:01]} Qb7 {[%emt 0:02:25]} 30. Qd3 {[%emt 0:01:42]} Qb3 {[%emt 0:01:14]} 31. Qd7 {[%emt 0:00:14]} (31. Qxb3 $142 Rxb3 32. Kf1) 31... Qxe3+ {[%emt 0:00:18]} (31... Qxc4 $2 {loses.} 32. Bg3 Nf6 33. Qd6 $19) 32. Kh1 {[%emt 0:00:49]} Nf6 {[%emt 0:00:33]} 33. Qe7 {[%emt 0:00:56] [#]} (33. Qd2 $19 Qxd2 34. Rxd2) 33... Qe2 {[%emt 0:00:23][%csl LRc4,LRd1][%cal Re2f1]} 34. Rc1 {[%emt 0:00:04]} Qf1# {[%emt 0:00:04] Artfully played by Adamson.   Weighted Error Value: White=0.62/Black=0.09 (flawless)} 0-1

[Event "Charlotte Spring IM-C 2023"]
[Site "Charlotte"]
[Date "2023.03.17"]
[Round "3.2"]
[White "Vanapalli, Vishnu"]
[Black "Jayaraman, Roshan"]
[Result "1-0"]
[ECO "C47"]
[WhiteElo "2226"]
[BlackElo "1907"]
[Annotator "TA"]
[PlyCount "73"]
[EventDate "2023.03.14"]
[EventType "tourn"]
[EventCountry "USA"]
[TimeControl "5400+30"]

{[%evp 11,73,53,38,22,19,18,18,18,47,0,0,-89,-87,-97,-90,-156,-153,-143,-158,-145,-126,-139,-129,-128,-128,-126,-113,-120,-106,-112,-104,-127,-98,-119,-106,-174,-174,-168,-170,-202,-52,-52,-52,-52,-44,-52,-53,-45,-53,-54,-43,-47,-24,-24,0,0,0,0,0,0,0,0,0,0]} 1. e4 {[%emt 0:00:03]} e5 {[%emt 0:08:00]} 2. Nf3 {[%emt 0:00:11]} Nf6 {[%emt 0:00:27]} 3. Nc3 {[%emt 0:00:07]} Nc6 {[%emt 0:00:07]} 4. d4 {[%emt 0:00:06]} exd4 {[%emt 0:00:15]} 5. Nxd4 {[%emt 0:00:08]} Nxe4 {[%emt 0:01:26]} 6. Nxe4 {[%emt 0:01:46]} Qe7 $1 {[%emt 0:00:10] [#]} 7. Bd3 {[%emt 0:02:40] C47: Scotch Four Knights and Four Knights with 4 g3.} Nxd4 {[%emt 0:02:28]} 8. O-O {[%emt 0:05:08]} d5 {[%emt 0:03:31] [#]} 9. Bc4 $1 {[%emt 0:43:21][%mdl 64] [#] Discovered Attack} Ne2+ $146 {[%emt 0:30:29]} ({Not} 9... Qxe4 10. Re1 $16) (9... Nf3+ {is more complex.} 10. Qxf3 Qxe4 11. Bxd5 Qxf3 12. Re1+ Be7) (9... Nf3+ 10. Qxf3) ({Predecessor:} 9... Nf3+ 10. Qxf3 Qxe4 11. Bxd5 Qxf3 12. Bxf3 c6 13. Re1+ Be7 14. Bg5 Be6 15. Bxe7 Kxe7 {1-0 Xiong,J (2688)-Chigaev,M (2631) Titled Tuesday intern op 07th Jun Early blitz 2022 (8)}) 10. Qxe2 {[%emt 0:06:29]} (10. Bxe2 $14 dxe4 11. Qd4) 10... Qxe4 $11 {[%emt 0:01:10]} 11. Re1 {[%emt 0:00:54]} (11. Qxe4+ $11 {remains equal.} dxe4 12. Bf4) 11... Qxe2 $17 {[%emt 0:01:25]} 12. Rxe2+ {[%emt 0:05:50]} Be6 {[%emt 0:00:21]} 13. Bxd5 {[%emt 0:06:29]} (13. Bd3 $142) 13... Rd8 {[%emt 0:02:33]} 14. Rxe6+ {[%emt 0:00:46]} fxe6 {[%emt 0:00:28]} 15. Bf3 {[%emt 0:00:05]} Kf7 {[%emt 0:01:58]} 16. Be3 {[%emt 0:01:07]} b6 {[%emt 0:00:39]} 17. Re1 {[%emt 0:03:39]} Be7 {[%emt 0:01:05]} 18. g3 {[%emt 0:01:31]} Bf6 {[%emt 0:05:44]} 19. c3 {[%emt 0:00:22]} g6 {[%emt 0:00:18]} 20. a4 {[%emt 0:02:58]} Rd6 {[%emt 0:03:02]} 21. a5 {[%emt 0:02:18]} Rb8 {[%emt 0:11:19]} 22. Ra1 {[%emt 0:00:56]} bxa5 {[%emt 0:04:09]} 23. Rxa5 {[%emt 0:00:28]} (23. Ra2 $17) 23... Rxb2 $19 {[%emt 0:00:14]} 24. Rxa7 {[%emt 0:00:24] [#]} Rd7 {[%emt 0:00:39]} (24... Bxc3 $2 25. Rxc7+ Kf6 26. Rxc3 $18) 25. Kg2 {[%emt 0:05:00] [#]} Bxc3 {[%emt 0:05:34]} (25... Be5 $1 $19 {[%cal Od7d3] Strongly threatening ...Rd3!} 26. Be4 Rb3) 26. Bc6 $15 {[%emt 0:00:19] This pair of bishops is nice.} Re7 {[%emt 0:00:21]} 27. Bc5 {[%emt 0:01:09] [#] Prevents e5.} Be5 $1 {[%emt 0:00:10]} 28. Bxe7 {[%emt 0:01:19]} Kxe7 {[%emt 0:00:07][%mdl 4096] Endgame KRB-KRB} 29. Ra4 {[%emt 0:02:21]} Kd6 {[%emt 0:01:19]} 30. Bf3 {[%emt 0:03:23]} c5 {[%emt 0:01:25] Hoping for ...Bd4.} 31. Ra6+ {[%emt 0:00:11]} Kd7 {[%emt 0:01:05]} (31... Ke7 $5 {[%cal Re5d4]} 32. Bg4 Bd6 $15) 32. Bg4 {[%emt 0:00:32]} Bd6 {[%emt 0:00:31]} 33. Ra7+ {[%emt 0:00:20] The position is equal.} Bc7 {[%emt 0:14:31]} 34. Bxe6+ {[%emt 0:05:10][%mdl 64] Deflection} Kxe6 {[%emt 0:00:30]} 35. Rxc7 {[%emt 0:00:30]} Kd5 36. Rxh7 {[%emt 0:00:30]} c4 {[%emt 0:01:00]} 37. Rc7 {[%emt 0:00:30][%mdl 32768] White happily takes the draw.   Weighted Error Value: White=0.17 (very precise) /Black=0.12 (very precise) . Loss on time!?} 1-0

[Event "Charlotte Spring IM-C 2023"]
[Site "Charlotte"]
[Date "2023.03.17"]
[Round "3.3"]
[White "Chiku-Ratte, Olivier-Kenta"]
[Black "Nguyen, James Le"]
[Result "1-0"]
[ECO "D45"]
[WhiteElo "2301"]
[BlackElo "2100"]
[Annotator "TA"]
[PlyCount "149"]
[EventDate "2023.03.14"]
[EventType "tourn"]
[EventCountry "USA"]
[SourceTitle "playchess.com"]
[Source "ChessBase"]
[SourceQuality "1"]
[TimeControl "5400+30"]

{[%evp 15,149,26,32,16,21,-6,0,1,83,73,66,33,54,40,81,23,23,20,22,27,42,35,44,45,79,29,81,91,97,93,104,96,97,59,61,31,37,21,24,25,23,10,11,0,4,-13,-13,-13,-13,-13,-13,-9,0,0,0,0,0,0,0,0,0,0,0,-8,0,0,0,-6,-5,-5,-5,-4,0,0,0,0,0,0,0,0,0,0,0,-8,0,0,0,0,0,0,0,0,0,0,0,0,0,0,0,0,0,0,0,0,0,0,0,0,0,0,0,0,0,0,0,0,0,0,0,0,0,0,0,0,0,0,8,0,364,0,1462,1405,8595,6707,29977,29979]} 1. d4 {[%emt 0:00:03]} d5 {[%emt 0:02:00]} 2. c4 {[%emt 0:00:09]} c6 {[%emt 0:00:08]} 3. Nf3 {[%emt 0:00:51]} Nf6 {[%emt 0:00:13]} 4. Nc3 {[%emt 0:00:05]} e6 {[%emt 0:00:12]} 5. e3 {[%emt 0:00:22][%cal Be2e3,Be3e4][%mdl 32]} a6 {[%emt 0:00:13]} 6. b3 {[%emt 0:03:11]} Bb4 {[%emt 0:01:30]} 7. Bd2 {[%emt 0:00:25]} O-O {[%emt 0:00:45]} 8. Bd3 {[%emt 0:00:40]} Nbd7 {[%emt 0:00:45]} 9. O-O {[%emt 0:00:25][%cal Oc3d5] D45: Semi-Slav: 5 e3.} Bd6 {[%emt 0:00:56]} 10. e4 {[%emt 0:05:56] Recently 10.Rc1 got a lot of attention.} dxc4 {[%emt 0:02:19]} 11. Bxc4 {[%emt 0:11:54] [#] Hoping for e5. The position is equal.} (11. bxc4 $5 e5 $8 12. d5 $11 (12. c5 Bc7 $11)) 11... b5 $146 {[%emt 0:12:51]} (11... e5 $1 $11 {remains equal.}) ({Predecessor:} 11... e5) 12. e5 $16 {[%emt 0:20:16]} bxc4 {[%emt 0:01:05]} 13. bxc4 {[%emt 0:06:44]} (13. exf6 Nxf6 14. bxc4 c5 $11) (13. exd6 $5 {[%cal Rb3c4]} cxb3 14. Qxb3 $14 (14. axb3 Nb6 $14)) 13... Be7 {[%emt 0:07:55]} 14. exf6 {[%emt 0:00:28]} Bxf6 {[%emt 0:04:33]} 15. Ne4 {[%emt 0:17:34]} (15. c5 $16) 15... c5 $11 {[%emt 0:06:52]} 16. Nxf6+ {[%emt 0:00:16]} ({But not} 16. Nxc5 Nxc5 17. Bb4 (17. dxc5 Bxa1 18. Qxa1 Bb7 $17) 17... Nd7 18. Bxf8 Nxf8 $17) 16... Qxf6 {[%emt 0:01:50]} 17. Rb1 {[%emt 0:05:29] Repels Bb7} e5 {[%emt 0:08:49]} 18. d5 {[%emt 0:24:42]} e4 {[%emt 0:05:33]} 19. Ng5 {[%emt 0:00:00]} Qg6 {[%emt 0:05:58]} 20. f3 {[%emt 0:00:00] White is more active.} ({White should try} 20. Rb3 $16) 20... exf3 {[%emt 0:04:12]} (20... Ne5 $11) 21. Nxf3 $16 {[%emt 0:00:00]} Nf6 {[%emt 0:05:06][%cal Bd7f6,Bf6e4,Be4c3][%mdl 32]} 22. Qb3 {[%emt 0:00:00]} Re8 {[%emt 0:06:28] [#]} 23. Rbe1 $1 {[%emt 0:00:00]} Ne4 {[%emt 0:03:53]} 24. Bf4 {[%emt 0:00:00]} Qf6 {[%emt 0:04:36] Wards off Ne5} 25. Be3 {[%emt 0:00:51][%cal Oe3c5] aiming for Bxc5!} (25. Ng5 {with more complications.} Bf5 26. Nxe4 Bxe4 27. Bg3) 25... Bf5 {[%emt 0:02:11][%cal Bc8f5,Bf5d3,Bd3c4][%mdl 32]} 26. Qa3 {[%emt 0:00:45]} Qc3 {[%emt 0:02:36]} 27. Qxc3 {[%emt 0:00:53]} ({Much weaker is} 27. Bxc5 Qxc4 28. Be3 Qxd5 $17) 27... Nxc3 {[%emt 0:00:04]} 28. Bxc5 {[%emt 0:00:48] Threatens to win with Ne5.} (28. Nd2 $5 {[%cal Rf1f5]} Bd3 29. Rf3 $14) 28... Bd3 {[%emt 0:00:58]} 29. Rxe8+ {[%emt 0:00:30]} Rxe8 {[%emt 0:00:04]} 30. Re1 {[%emt 0:01:18]} Rxe1+ {[%emt 0:01:13]} 31. Nxe1 {[%emt 0:00:01]} Bxc4 $11 {[%emt 0:00:07][%mdl 4096] Endgame KBN-KBN} 32. d6 {[%emt 0:00:10]} Bb5 {[%emt 0:01:10][%cal Of7f6]} 33. Nf3 {[%emt 0:00:59]} Ne4 {[%emt 0:00:25]} (33... Nxa2 $2 34. Ne5 $18) 34. Bb4 {[%emt 0:00:09]} f6 {[%emt 0:00:37]} 35. Nd4 {[%emt 0:00:04] And now Nxb5 would win.} Bd7 {[%emt 0:00:13]} 36. Kf1 {[%emt 0:00:14]} Kf7 {[%emt 0:00:17]} 37. Ke2 {[%emt 0:00:12]} f5 {[%emt 0:00:47]} 38. Ke3 {[%emt 0:00:33]} g5 {[%emt 0:03:08]} 39. a3 {[%emt 0:00:45]} h5 {[%emt 0:00:48]} 40. h4 {[%emt 0:00:32]} gxh4 {[%emt 0:01:31]} 41. Nf3 {[%emt 0:00:08]} Ke6 {[%emt 0:01:48]} 42. Nxh4 {[%emt 0:00:43]} Nxd6 {[%emt 0:00:45]} 43. Ng6 {[%emt 0:00:34] Nf4+ would be deadly.} Be8 {[%emt 0:01:40]} 44. Nf4+ {[%emt 0:00:12]} Kd7 {[%emt 0:00:19]} 45. Kd4 {[%emt 0:00:15]} Kc6 {[%emt 0:01:46]} 46. Ke5 {[%emt 0:00:54]} Nc4+ {[%emt 0:00:25]} 47. Kxf5 {[%emt 0:00:47]} Kb5 {[%emt 0:00:44]} 48. Nd5 {[%emt 0:01:18]} Bc6 {[%emt 0:01:04]} 49. Nc3+ {[%emt 0:00:40]} Kb6 {[%emt 0:00:02]} 50. g3 {[%emt 0:00:10]} Ne3+ {[%emt 0:00:23]} 51. Kg5 {[%emt 0:00:30]} Nf1 {[%emt 0:00:57]} 52. Bd6 {[%emt 0:00:33]} Bf3 {[%emt 0:00:30]} 53. Kf4 {[%emt 0:00:21]} Bg4 {[%emt 0:00:11]} 54. Bb4 {[%emt 0:00:51]} Nh2 {[%emt 0:00:48]} 55. a4 {[%emt 0:00:18]} Kc6 {[%emt 0:00:22]} 56. Ne4 {[%emt 0:01:00]} Bd1 {[%emt 0:00:59]} 57. a5 {[%emt 0:00:19]} Bg4 {[%emt 0:00:29]} 58. Be7 {[%emt 0:00:28]} Kb5 {[%emt 0:00:33]} 59. Bd8 {[%emt 0:00:09]} Nf1 {[%emt 0:00:37]} 60. Nf6 {[%emt 0:00:30]} Bd1 {[%emt 0:00:23]} 61. Nd5 {[%emt 0:00:31]} Kc6 {[%emt 0:00:12]} 62. Nc3 {[%emt 0:00:29]} Bg4 {[%emt 0:00:10]} 63. Ne4 {[%emt 0:00:03]} Kb5 {[%emt 0:00:32]} 64. Bb6 {[%emt 0:00:06]} Kc6 {[%emt 0:00:36]} 65. Bf2 {[%emt 0:00:15]} Nh2 {[%emt 0:00:30]} 66. Nd2 {[%emt 0:00:38] Black must now prevent Bg1.} Bd1 {[%emt 0:00:28]} 67. Nc4 {[%emt 0:01:17]} Ng4 {[%emt 0:00:47]} 68. Bb6 {[%emt 0:00:31]} Kd5 {[%emt 0:00:39]} 69. Nd2 {[%emt 0:00:42]} Ne5 {[%emt 0:00:43]} 70. Ne4 {[%emt 0:00:35] Strongly threatening Nc3+.} Bf3 {[%emt 0:00:36]} 71. Nc3+ {[%emt 0:01:09]} Kc4 $2 {[%emt 0:00:26][%mdl 8192]} (71... Kd6 $1 $11 {and Black has nothing to worry.}) 72. Na4 $2 {[%emt 0:00:04]} (72. Nb1 $18) 72... Kb5 $2 {[%emt 0:00:40][%mdl 8192]} (72... Bc6 $11 73. Nb2+ Kd5) 73. Nc5 $18 {[%emt 0:00:26]} Nc6 {[%emt 0:00:32]} 74. Kxf3 {[%emt 0:00:05] Ke4 is the strong threat.} Nxa5 {[%emt 0:00:08]} 75. Bxa5 {[%emt 0:00:16] Weighted Error Value: White=0.09 (flawless) /Black=0.06 (flawless)} 1-0

[Event "Charlotte Spring IM-C 2023"]
[Site "Charlotte"]
[Date "2023.03.17"]
[Round "3.4"]
[White "Georgiev, Vladimir"]
[Black "Petenyi, Tamas"]
[Result "1/2-1/2"]
[ECO "E71"]
[WhiteElo "2404"]
[BlackElo "2325"]
[Annotator "TA"]
[PlyCount "35"]
[EventDate "2023.03.14"]
[EventType "tourn"]
[EventCountry "USA"]
[SourceTitle "playchess.com"]
[Source "ChessBase"]
[SourceQuality "1"]
[TimeControl "5400+30"]

{[%evp 18,35,78,70,83,27,22,14,31,4,31,-4,-7,-24,-10,-10,-3,-5,-4,-19]} 1. d4 {[%emt 0:00:34]} Nf6 {[%emt 0:01:24]} 2. c4 {[%emt 0:00:23]} g6 {[%emt 0:00:07]} 3. Nc3 {[%emt 0:00:09]} Bg7 {[%emt 0:00:06]} 4. e4 {[%emt 0:00:12]} d6 {[%emt 0:00:07]} 5. h3 {[%emt 0:01:03]} O-O {[%emt 0:02:23]} 6. Bg5 {[%emt 0:00:37]} c5 {[%emt 0:04:39]} 7. d5 {[%emt 0:01:10]} b5 {[%emt 0:04:55]} 8. cxb5 {[%emt 0:00:20]} a6 {[%emt 0:00:13]} 9. a4 {[%emt 0:00:16]} Qa5 {[%emt 0:04:59] [#]} 10. Bd2 $1 {[%emt 0:01:14]} axb5 $1 {[%emt 0:07:57][%mdl 4] now scores much better than the old 10...Qb4. E71: King's Indian: 4 e4 d6 5 h3.} 11. Nxb5 {[%emt 0:05:49]} (11. Bxb5 $16 Ba6 12. Nge2) 11... Qb6 $11 {[%emt 0:02:09]} 12. Bd3 {[%emt 0:00:58]} c4 {[%emt 0:01:59]} 13. Bc2 {[%emt 0:01:27] [#]} Ba6 $146 {[%emt 0:06:03]} ({Predecessor:} 13... Bd7 14. Nf3 Bxb5 15. axb5 Nbd7 16. O-O Qxb5 17. Bc3 Rxa1 18. Qxa1 Nc5 19. Nd4 Qb7 {1-0 Karhanek,P (2160)-Splichal,S (2130) Ostrava op 1998}) 14. Ne2 {[%emt 0:01:15]} Bxb5 {[%emt 0:07:24]} 15. axb5 {[%emt 0:00:06]} Rxa1 {[%emt 0:00:46]} 16. Qxa1 {[%emt 0:00:09] The position is equal.} Qxb5 {[%emt 0:00:15]} 17. O-O {[%emt 0:01:15]} Nbd7 {[%emt 0:00:36]} 18. Bc3 {[%emt 0:06:26] White got outplayed after the opening.   Weighted Error Value: White=0.12 (very precise) /Black=0.07 (flawless)} (18. Qa2 $5 {[%cal Re2d4]}) 1/2-1/2

[Event "Charlotte Spring IM-C 2023"]
[Site "Charlotte"]
[Date "2023.03.17"]
[Round "3.5"]
[White "Amburgy, Ryan"]
[Black "Yu, Jiangwei"]
[Result "0-1"]
[ECO "D15"]
[WhiteElo "2242"]
[BlackElo "2167"]
[Annotator "TA"]
[PlyCount "122"]
[EventDate "2023.03.14"]
[EventType "tourn"]
[EventCountry "USA"]
[SourceTitle "playchess.com"]
[Source "ChessBase"]
[SourceQuality "1"]
[TimeControl "5400+30"]

{[%evp 10,122,27,15,33,18,20,15,12,17,13,0,29,25,22,31,26,30,29,27,27,26,20,17,20,17,23,15,54,33,41,0,0,0,0,0,0,0,0,0,0,0,41,29,18,0,0,0,0,0,0,0,0,-962,-937,-914,-919,-5081,-5069,-4520,-5085,-5097,-6203,-6203,-6203,-6195,-5337,-29960,-29960,-29971,-29971,-29966,-29967,-29974,-29975,-29977,-29976,-29982,-29977,-29977,-29978,-29985,-29979,-29979,-29980,-29980,-29981,-29981,-29982,-29982,-29983,-29983,-29984,-29984,-29985,-29985,-29986,-29986,-29987,-29989,-29990,-29990,-29991,-29991,-29988,-29988,-29989,-29989,-29988,-29988,-29989,-29989,-29990,-29992,-29993]} 1. d4 {[%emt 0:00:01]} d5 {[%emt 0:03:46]} 2. c4 {[%emt 0:00:05]} c6 {[%emt 0:00:06]} 3. Nf3 {[%emt 0:00:06]} Nf6 {[%emt 0:00:07]} 4. Nc3 {[%emt 0:00:06]} a6 {[%emt 0:00:05]} 5. e3 {[%emt 0:00:07]} Bf5 {[%emt 0:00:14]} 6. Qb3 {[%emt 0:00:06]} b5 {[%emt 0:00:25] D15: Slav Defence: 4 Nc3 a6 and gambit lines after 4 Nc3 dxc4.} 7. cxd5 {[%emt 0:00:05]} cxd5 {[%emt 1:29:17]} 8. a4 {[%emt 0:00:05]} b4 {[%emt 0:00:00] The position is equal.} 9. Qxb4 {[%emt 0:00:03]} Nc6 $1 {[%emt 0:00:00]} 10. Qc5 {[%emt 0:00:05]} Bd7 {[%emt 0:00:00]} (10... Na5 $5 11. Bxa6 {[%mdl 64] Decoy} Rxa6 12. Qb5+ Rc6 $11) 11. Ne5 {[%emt 0:00:05]} e6 {[%emt 0:00:00]} 12. Nxc6 {[%emt 0:00:04]} Qc7 {[%emt 0:00:00] [#]} 13. Ne7 $1 {[%emt 0:00:06]} Qxc5 {[%emt 0:00:00]} 14. dxc5 {[%emt 0:00:01][%cal Oc5c6] c6! is the strong threat.} Bxe7 {[%emt 0:00:00]} 15. b4 {[%emt 0:00:09][%cal Bb2b4,Bb4a5,Ba5a6][%mdl 32]} a5 {[%emt 0:00:00]} 16. bxa5 {[%emt 0:00:05]} Bxc5 {[%emt 0:00:00]} 17. Bd2 {[%emt 0:00:05]} Bb4 {[%emt 0:00:00]} ({Less strong is} 17... Rxa5 18. Nb5 Bb6 19. Bb4 $18) 18. a6 {[%emt 0:00:12]} Ke7 {[%emt 0:05:30]} 19. Bd3 {[%emt 0:00:20] [#]} Bc8 $146 {[%emt 0:00:00]} ({Predecessor:} 19... Rhc8 20. Ne2 Bxd2+ 21. Kxd2 Ne4+ 22. Bxe4 dxe4 23. Rhb1 Rxa6 24. Nc3 Rd6+ 25. Kc2 e5 {0-1 Makkar,R (2399)-Wadsworth,M (2467) Newcastle EJCOA 4th 2022 (3)}) 20. Nb5 {[%emt 0:06:15]} (20. Rb1 $5 {[%cal Rb1b4]} Bc5 21. a7 $14) 20... Bxd2+ {[%emt 0:00:00]} 21. Kxd2 {[%emt 0:00:01] Hoping for a7.} Rxa6 {[%emt 0:00:00]} 22. Rhc1 {[%emt 0:10:17]} Ra5 {[%emt 0:00:00]} 23. Nd4 {[%emt 0:04:16] And now Nc6+ would win.} Bd7 {[%emt 0:00:00]} 24. Nc6+ {[%emt 0:00:48]} Bxc6 {[%emt 0:00:00]} 25. Rxc6 {[%emt 0:00:04]} Ne4+ {[%emt 0:00:00]} 26. Bxe4 {[%emt 0:02:17]} dxe4 $14 {[%emt 0:00:00][%mdl 4096] Endgame KRR-KRR} 27. Kc3 {[%emt 0:00:07]} Rb8 {[%emt 0:00:00]} 28. Ra2 {[%emt 0:01:32]} f5 {[%emt 0:00:00]} 29. Rc4 {[%emt 0:01:57]} Rb1 {[%emt 0:00:00]} 30. h4 {[%emt 0:01:30]} Rd5 {[%emt 0:00:00] Threatens to win with ...Rd3+.} 31. Rd4 {[%emt 0:03:51][%mdl 8192] Prevents Rd3+. White is on the road to losing.} (31. Kc2 $11 Rdd1 32. Rb4 Rdc1+ 33. Kd2) 31... Rc5+ $19 {[%emt 0:00:00]} 32. Kd2 {[%emt 0:00:03]} e5 {[%emt 0:00:00][%cal Be6e5,Be5d4,Bd4d3][%mdl 32]} 33. Rc2 {[%emt 0:00:12]} Rxc2+ {[%emt 0:00:00]} 34. Kxc2 {[%emt 0:00:01]} exd4 {[%emt 0:00:00]} 35. Kxb1 {[%emt 0:00:01] [#] KP-KP} d3 $1 {[%emt 0:00:00]} 36. Kb2 {[%emt 0:01:51]} Kd6 {[%emt 0:00:00]} 37. Kc3 {[%emt 0:00:06]} Kc5 {[%emt 0:00:00]} 38. h5 {[%emt 0:04:32]} Kb6 {[%emt 0:00:00] Black mates.} 39. Kb2 {[%emt 0:01:28]} Ka5 {[%emt 0:00:00]} 40. Kb3 {[%emt 0:00:04]} g6 {[%emt 0:00:00]} 41. hxg6 {[%emt 0:05:38]} hxg6 {[%emt 0:00:00]} 42. f3 {[%emt 0:00:34]} g5 {[%emt 0:00:00]} 43. Kb2 {[%emt 0:03:47]} Kxa4 {[%emt 0:00:00]} 44. Kc3 {[%emt 0:00:01]} g4 {[%emt 0:00:00]} 45. Kd2 {[%emt 0:01:01]} Kb3 {[%emt 0:00:00]} 46. fxe4 {[%emt 0:00:39]} fxe4 {[%emt 0:00:00] K3P-KPP} 47. Kc1 {[%emt 0:00:05]} Kc3 {[%emt 0:03:52]} 48. Kd1 {[%emt 0:00:03]} d2 {[%emt 0:00:19]} (48... g3 49. Kc1 Kb4 50. Kd2 $17) 49. g3 {[%emt 0:00:04]} Kb3 {[%emt 0:00:28]} 50. Kxd2 {[%emt 0:00:05] KPP-KPP} Kb2 {[%emt 0:00:03]} 51. Kd1 {[%emt 0:00:12]} Kc3 {[%emt 0:00:04]} 52. Ke2 {[%emt 0:00:12] [#]} Kc2 $1 {[%emt 0:00:04]} 53. Ke1 {[%emt 0:00:08]} Kd3 {[%emt 0:00:05]} 54. Kf2 {[%emt 0:00:02]} Kd2 {[%emt 0:00:05]} 55. Kf1 {[%emt 0:00:01]} Kxe3 {[%emt 0:00:05] KPP-KP} 56. Ke1 {[%emt 0:00:01]} Kf3 {[%emt 0:00:09]} 57. Kf1 {[%emt 0:00:04]} Kxg3 {[%emt 0:00:16]} 58. Ke2 {[%emt 0:00:03]} Kh2 {[%emt 0:00:05]} 59. Ke3 {[%emt 0:00:03]} g3 {[%emt 0:00:04]} 60. Kxe4 {[%emt 0:00:03]} g2 {[%emt 0:00:04]} 61. Kf3 {[%emt 0:00:05]} g1=Q {[%emt 0:00:04] Weighted Error Value: White=0.34/Black=0.03 (flawless)} ({Weaker is} 61... g1=B 62. Kg4 $11) 0-1